fUSD/lending_fUSD_20251201
["ID","MTS","AMOUNT","RATE_DAILY","PERIOD"]
[395256366,1764571861811,-1626.387649,0.00016999,2]
[395256367,1764571861820,-1626.387649,0.00016999,2]
[395256368,1764571861829,-1626.387649,0.00016999,2]
[395256369,1764571861838,-1626.387649,0.00016999,2]
[395256370,1764571861848,-179.513814,0.00016999,2]
[395256371,1764571861857,-300.0,0.00016999,2]
[395256372,1764571861866,-179.513814,0.00016999,2]
[395256373,1764571861876,-179.513814,0.00016999,2]
[395256374,1764571861885,-179.513814,0.00016999,2]
[395256375,1764571861894,-151.0,0.00016999,2]
[395256376,1764571861903,-151.0,0.00016999,2]
[395256377,1764571861913,-151.0,0.00016999,2]
[395256378,1764571861922,-151.0,0.00016999,2]
[395256379,1764571861931,-610.0,0.00017,2]
[395256380,1764571861941,-1603.0,0.00017,2]
[395256381,1764571861950,-1322.0,0.00017,2]
[395256382,1764571861959,-3442.0,0.00017,2]
[395256383,1764571861968,-1258.0,0.00017,2]
[395256384,1764571861978,-656.0,0.00017,2]
[395256385,1764571861987,-6507.0,0.00017,2]
[395256386,1764571861996,-562.0,0.00017,2]
[395256387,1764571862006,-4704.0,0.00017,2]
[395256388,1764571862015,-150.0,0.00017,2]
[395256389,1764571862024,-521480.40921034,0.00017,2]
[395256390,1764571863467,-1811.16,0.00017,2]
[395256391,1764571863484,-3234.24970126,0.00017,2]
[395256392,1764571863495,-862.09077458,0.00017,2]
[395256393,1764571863506,-299.41619038,0.00017,2]
[395256394,1764571863531,-1058.0,0.00012957,2]
[395256395,1764571863540,-16123.89270378,0.00017,2]
[395256396,1764571863551,-1296.6415804,0.00017,2]
[395256397,1764571863562,-458447.25951544,0.00017,2]
[395256398,1764571863571,-150.0,0.00017,2]
[395256399,1764571863580,-150.0,0.00017,2]
[395256400,1764571863589,-640.86492592,0.00017,2]
[395256401,1764571863598,-150.0,0.00017,2]
[395256402,1764571863607,-911.70063418,0.00017,2]
[395256403,1764571863616,-1029.45513101,0.00017,2]
[395256404,1764571863626,-500.0,0.00017,2]
[395256405,1764571863636,-1000.0,0.00017,2]
[395256406,1764571863645,-1000.0,0.00017,2]
[395256407,1764571863654,-1000.0,0.00017,2]
[395256408,1764571863664,-1000.0,0.00017,2]
[395256409,1764571863674,-1000.0,0.00017,2]
[395256410,1764571863690,-1000.0,0.00017,2]
[395256411,1764571863699,-1000.0,0.00017,2]
[395256412,1764571863710,-1000.0,0.00017,2]
[395256413,1764571863719,-1000.0,0.00017,2]
[395256414,1764571863728,-1000.0,0.00017,2]
[395256415,1764571863738,-1000.0,0.00017,2]
[395256416,1764571863748,-1000.0,0.00017,2]
[395256417,1764571863757,-1000.0,0.00017,2]
[395256418,1764571863766,-1000.0,0.00017,2]
[395256419,1764571863775,-1000.0,0.00017,2]
[395256420,1764571863784,-1000.0,0.00017,2]
[395256421,1764571863795,-1000.0,0.00017,2]
[395256422,1764571863804,-1000.0,0.00017,2]
[395256423,1764571863813,-1000.0,0.00017,2]
[395256424,1764571863822,-1000.0,0.00017,2]
[395256425,1764571863831,-1000.0,0.00017,2]
[395256426,1764571863840,-1000.0,0.00017,2]
[395256427,1764571863849,-1000.0,0.00017,2]
[395256428,1764571863859,-1000.0,0.00017,2]
[395256429,1764571863868,-1000.0,0.00017,2]
[395256430,1764571863877,-1000.0,0.00017,2]
[395256431,1764571863887,-1000.0,0.00017,2]
[395256432,1764571863896,-1000.0,0.00017,2]
[395256433,1764571863906,-1008.27314937,0.00017,2]
[395256434,1764571863915,-68994.95485219,0.00017,2]
[395256435,1764571863925,-3536560.21546891,0.00017,2]
[395256436,1764571863996,-500.0,0.00012873,2]
[395256437,1764571864006,-385217.03639627,0.00017,2]
[395256438,1764571864034,-500.0,0.0001301,2]
[395256439,1764571864044,-1430.73770265,0.00017,2]
[395256440,1764571864057,-17372.16585973,0.00017,2]
[395256441,1764571864530,-403.10283684,0.00012873,2]
[395256442,1764571864542,-96.89716316,0.00012873,2]
[395256443,1764571864551,-150.0,0.00012873,2]
[395256444,1764571864561,-28.21747684,0.00012983,2]
[395256445,1764572111081,-257.95045838,0.0001276,2]
[395256446,1764572111103,-250.0,0.00012814,2]
[395256447,1764572111128,-150.0,0.00012858,2]
[395256448,1764572111151,-1200.0,0.00012858,2]
[395256449,1764572111176,-300.0,0.00012858,2]
[395256450,1764572111208,-500.0,0.00012859,2]
[395256451,1764572111237,-500.0,0.00012859,2]
[395256452,1764572111265,-500.0,0.00012859,2]
[395256453,1764572111292,-500.0,0.00012859,2]
[395256454,1764572111320,-500.0,0.00012859,2]
[395256455,1764572111348,-500.0,0.00012859,2]
[395256456,1764572111375,-150.0,0.00012859,2]
[395256457,1764572111401,-500.0,0.00012859,2]
[395256458,1764572111428,-500.0,0.00012859,2]
[395256459,1764572111454,-500.0,0.00012859,2]
[395256460,1764572111481,-500.0,0.00012859,2]
[395256461,1764572111506,-500.0,0.00012859,2]
[395256462,1764572111533,-500.0,0.00012859,2]
[395256463,1764572111560,-150.0,0.00012859,2]
[395256464,1764572111587,-500.0,0.00012859,2]
[395256465,1764572111614,-500.0,0.00012859,2]
[395256466,1764572111641,-579.57456057,0.00012859,2]
[395256467,1764572111667,-32025.47498105,0.0001286,2]
[395256519,1764573031535,-299.47215798,0.00012285,2]
[395256520,1764573031545,-150.0,0.00012309,2]
[395256521,1764573031554,-337.80678124,0.00012348,2]
[395256522,1764573031567,-343.24244796,0.00012348,2]
[395256523,1764573031577,-505.95804231,0.00012348,2]
[395256524,1764573031589,-274.92000001,0.00012348,2]
[395256525,1764573031602,-747.8952764,0.00012348,2]
[395256526,1764573031613,-688.72,0.00012348,2]
[395256527,1764573031628,-101.45745208,0.00012348,2]
[395256528,1764573031637,-500.0,0.00012385,2]
[395256529,1764573031647,-805.42,0.00012392,2]
[395256530,1764573031656,-1852.42,0.00012485,2]
[395256531,1764573031666,-212.39706258,0.00012485,2]
[395256532,1764573031676,-1200.0,0.00012601,2]
[395256533,1764573031686,-1200.0,0.00012602,2]
[395256534,1764573031696,-300.0,0.00012602,2]
[395256535,1764573031705,-300.0,0.00012602,2]
[395256536,1764573031715,-5806.254,0.00012603,2]
[395256537,1764573031724,-282.917,0.00012603,2]
[395256538,1764573031733,-1841.01422486,0.00012621,2]
[395256539,1764573031744,-150.0,0.00012659,2]
[395256540,1764573031753,-36588.31896224,0.0001266,2]
[395256542,1764573031775,-583.63247807,0.0001266,2]
[395256544,1764573031787,-5356.7214634,0.0001266,2]
[395256546,1764573031797,-62399.38024524,0.0001266,2]
[395256547,1764573031809,-38341.28089164,0.0001266,2]
[395256548,1764573031821,-433.69278607,0.0001266,2]
[395256549,1764573031832,-1834.76017038,0.0001266,2]
[395256550,1764573031843,-482.13,0.0001266,2]
[395256551,1764573031854,-630.75339574,0.0001266,2]
[395256552,1764573031869,-300.0,0.0001266,2]
[395256553,1764573031884,-398.75749433,0.0001266,2]
[395256554,1764573031897,-903.60764366,0.0001266,2]
[395256555,1764573037624,-272.99999997,0.00012652,2]
[395256556,1764573037635,-91.35990553,0.00012652,2]
[395256557,1764573037644,-352.90146266,0.00012659,2]
[395256558,1764573037654,-500.0,0.00012659,2]
[395256559,1764573037663,-40.26452644,0.00012659,2]
[395256560,1764573037674,-224.08133702,0.00012659,2]
[395256561,1764573037683,-387.5691339,0.00012659,2]
[395256562,1764573037692,-500.0,0.00012659,2]
[395256563,1764573037703,-611746.96446923,0.0001266,2]
[395256564,1764573037711,-14423.5769,0.0001266,2]
[395256565,1764573037721,-38850.81143404,0.00012722,2]
[395256566,1764573037731,-2500.0,0.00012752,2]
[395256567,1764573037740,-6626.81406724,0.00012759,2]
[395256568,1764573037749,-9999.99,0.00012773,2]
[395256569,1764573037758,-12614.97504213,0.00012773,2]
[395256570,1764573037767,-66992.76379205,0.00012781,2]
[395256571,1764573037776,-3670.1459,0.00012822,2]
[395256572,1764573037785,-150.99,0.00012822,2]
[395256573,1764573037794,-9999.99,0.00012822,2]
[395256574,1764573037803,-1863.9,0.00012822,2]
[395256575,1764573037812,-150.99,0.00012822,2]
[395256576,1764573037821,-301.91,0.00012822,2]
[395256577,1764573037831,-64229.98,0.00012822,2]
[395256578,1764573037840,-299.99,0.00012822,2]
[395256579,1764573037850,-999.99,0.00012822,2]
[395256580,1764573037859,-1575.36,0.00012852,2]
[395256581,1764573037869,-151.0,0.00012852,2]
[395256582,1764573037879,-500.0,0.00012852,2]
[395256583,1764573037888,-151.0,0.00012852,2]
[395256584,1764573037897,-500.0,0.00012852,2]
[395256585,1764573037906,-151.0,0.00012852,2]
[395256586,1764573037915,-500.0,0.00012852,2]
[395256587,1764573037925,-151.0,0.00012852,2]
[395256588,1764573037934,-500.0,0.00012852,2]
[395256589,1764573037943,-151.0,0.00012852,2]
[395256590,1764573037952,-500.0,0.00012852,2]
[395256591,1764573037961,-500.0,0.00012852,2]
[395256593,1764573037970,-151.0,0.00012852,2]
[395256595,1764573037979,-500.0,0.00012852,2]
[395256597,1764573037988,-151.0,0.00012852,2]
[395256599,1764573037997,-500.0,0.00012852,2]
[395256601,1764573038006,-500.0,0.00012852,2]
[395256603,1764573038015,-151.0,0.00012852,2]
[395256605,1764573038024,-500.0,0.00012852,2]
[395256607,1764573038033,-500.0,0.00012852,2]
[395256608,1764573038043,-500.0,0.00012852,2]
[395256609,1764573038052,-151.0,0.00012852,2]
[395256610,1764573038061,-500.0,0.00012852,2]
[395256611,1764573038069,-500.0,0.00012852,2]
[395256612,1764573038078,-151.0,0.00012852,2]
[395256613,1764573038087,-500.0,0.00012852,2]
[395256614,1764573038096,-500.0,0.00012852,2]
[395256615,1764573038105,-151.0,0.00012852,2]
[395256616,1764573038115,-500.0,0.00012852,2]
[395256617,1764573038124,-500.0,0.00012852,2]
[395256618,1764573038134,-151.0,0.00012852,2]
[395256619,1764573038143,-500.0,0.00012852,2]
[395256620,1764573038153,-500.0,0.00012852,2]
[395256621,1764573038162,-151.0,0.00012852,2]
[395256622,1764573038171,-500.0,0.00012852,2]
[395256623,1764573038180,-500.0,0.00012852,2]
[395256624,1764573038190,-151.0,0.00012852,2]
[395256625,1764573038200,-500.0,0.00012852,2]
[395256626,1764573038209,-500.0,0.00012852,2]
[395256627,1764573038218,-500.0,0.00012852,2]
[395256628,1764573038227,-500.0,0.00012852,2]
[395256629,1764573038236,-500.0,0.00012852,2]
[395256630,1764573038245,-500.0,0.00012852,2]
[395256631,1764573038254,-200.0,0.00012852,2]
[395256632,1764573038263,-200.0,0.00012852,2]
[395256633,1764573038272,-158.7326939,0.00012852,2]
[395256634,1764573038282,-151.0,0.00012852,2]
[395256635,1764573038291,-151.0,0.00012852,2]
[395256636,1764573038300,-151.0,0.00012852,2]
[395256637,1764573038309,-151.0,0.00012852,2]
[395256638,1764573038318,-500.0,0.00012852,2]
[395256639,1764573038327,-151.0,0.00012852,2]
[395256640,1764573038336,-151.0,0.00012852,2]
[395256641,1764573038345,-151.0,0.00012852,2]
[395256642,1764573038355,-151.0,0.00012852,2]
[395256643,1764573038365,-151.0,0.00012852,2]
[395256644,1764573038374,-151.0,0.00012852,2]
[395256645,1764573038383,-151.0,0.00012852,2]
[395256646,1764573038392,-151.0,0.00012852,2]
[395256647,1764573038401,-151.0,0.00012852,2]
[395256648,1764573038411,-151.0,0.00012852,2]
[395256649,1764573038420,-151.0,0.00012852,2]
[395256650,1764573038430,-151.0,0.00012852,2]
[395256651,1764573038439,-151.0,0.00012852,2]
[395256652,1764573038449,-151.0,0.00012852,2]
[395256653,1764573038458,-151.0,0.00012852,2]
[395256654,1764573038468,-151.0,0.00012852,2]
[395256655,1764573038478,-200.0,0.00012852,2]
[395256656,1764573038487,-500.0,0.00012873,2]
[395256657,1764573038497,-500.0,0.00012873,2]
[395256658,1764573038506,-500.0,0.00012873,2]
[395256659,1764573038516,-500.0,0.00012873,2]
[395256660,1764573038529,-500.0,0.00012873,2]
[395256661,1764573038538,-500.0,0.00012873,2]
[395256662,1764573038548,-500.0,0.00012873,2]
[395256663,1764573038557,-500.0,0.00012873,2]
[395256664,1764573038567,-500.0,0.00012873,2]
[395256665,1764573038576,-500.0,0.00012873,2]
[395256666,1764573038586,-159.45765875,0.00012873,2]
[395256667,1764573038595,-500.0,0.00012873,2]
[395256668,1764573038606,-500.0,0.00012873,2]
[395256669,1764573038618,-500.0,0.00012873,2]
[395256670,1764573038628,-500.0,0.00012873,2]
[395256671,1764573038638,-500.0,0.00012873,2]
[395256672,1764573038647,-481.4168575,0.00012873,2]
[395256673,1764573038657,-500.0,0.00012873,2]
[395256674,1764573038666,-503.29972338,0.00012873,2]
[395256675,1764573038676,-260.44335964,0.00012932,2]
[395256676,1764573038685,-33403.7185,0.00012998,2]
[395256677,1764573038694,-1000.0,0.00012998,2]
[395256678,1764573038704,-252.7415751,0.0001301,2]
[395256679,1764573038713,-150.0,0.0001301,2]
[395256680,1764573038722,-150.0,0.0001301,2]
[395256681,1764573038732,-500.0,0.0001301,2]
[395256682,1764573038741,-4394.0,0.0001301,2]
[395256683,1764573038751,-150.0,0.0001301,2]
[395256684,1764573038761,-500.0,0.0001301,2]
[395256685,1764573038770,-150.0,0.0001301,2]
[395256686,1764573038779,-500.0,0.0001301,2]
[395256687,1764573038789,-500.0,0.0001301,2]
[395256688,1764573038798,-150.0,0.0001301,2]
[395256689,1764573038807,-500.0,0.0001301,2]
[395256690,1764573038817,-500.0,0.0001301,2]
[395256691,1764573038826,-150.0,0.0001301,2]
[395256692,1764573038835,-150.0,0.0001301,2]
[395256693,1764573038844,-500.0,0.0001301,2]
[395256694,1764573038854,-500.0,0.0001301,2]
[395256695,1764573038864,-225.27423133,0.0001301,2]
[395256696,1764573038873,-417.0,0.0001301,2]
[395256697,1764573038883,-1575.36,0.00013126,2]
[395256698,1764573038892,-150.0,0.00013147,2]
[395256699,1764573038902,-150.0,0.00013147,2]
[395256700,1764573038913,-500.0,0.00013147,2]
[395256701,1764573038923,-4394.0,0.00013147,2]
[395256702,1764573038932,-150.0,0.00013147,2]
[395256703,1764573038941,-500.0,0.00013147,2]
[395256704,1764573038951,-278.76545568,0.00013147,2]
[395256705,1764573038960,-500.0,0.00013147,2]
[395256706,1764573038969,-500.0,0.00013147,2]
[395256707,1764573038981,-150.0,0.00013147,2]
[395256708,1764573038991,-500.0,0.00013147,2]
[395256709,1764573039000,-503.47951242,0.00013147,2]
[395256710,1764573039010,-268.2703708,0.00013147,2]
[395256711,1764573039019,-500.0,0.00013147,2]
[395256712,1764573039029,-500.0,0.00013147,2]
[395256713,1764573039038,-417.0,0.00013147,2]
[395256714,1764573039048,-1230.0,0.00013149,2]
[395256715,1764573039057,-478.0,0.00013149,2]
[395256716,1764573039066,-38850.81143401,0.00013186,2]
[395256717,1764573039076,-12614.97504208,0.00013232,2]
[395256718,1764573039085,-1841.0142248,0.00013232,2]
[395256719,1764573039095,-150.0,0.00013284,2]
[395256720,1764573039104,-150.0,0.00013284,2]
[395256721,1764573039114,-500.0,0.00013284,2]
[395256722,1764573039124,-4394.0,0.00013284,2]
[395256723,1764573039133,-200.0,0.00013284,2]
[395256724,1764573039142,-500.0,0.00013284,2]
[395256725,1764573039152,-500.0,0.00013284,2]
[395256726,1764573039161,-504.66240196,0.00013284,2]
[395256727,1764573039169,-150.0,0.00013284,2]
[395256728,1764573039178,-500.0,0.00013284,2]
[395256729,1764573039188,-425.64641507,0.00013284,2]
[395256730,1764573039197,-500.0,0.00013284,2]
[395256731,1764573039206,-417.0,0.00013284,2]
[395256732,1764573039216,-2364.68938321,0.00013357,2]
[395256733,1764573039225,-1575.36,0.000134,2]
[395256734,1764573039234,-200.0,0.000134,2]
[395256735,1764573039243,-500.0,0.000134,2]
[395256736,1764573039252,-200.0,0.000134,2]
[395256737,1764573039261,-1931.13207761,0.00013411,2]
[395256738,1764573039270,-1002.31396742,0.00013421,2]
[395256739,1764573039279,-508.35390567,0.00013421,2]
[395256740,1764573039288,-507.34097889,0.00013421,2]
[395256741,1764573039297,-509.2603075,0.00013421,2]
[395256742,1764573039306,-1000.0,0.00013421,2]
[395256743,1764573039316,-1000.0,0.00013421,2]
[395256744,1764573039326,-975.59481342,0.00013421,2]
[395256745,1764573039336,-1000.0,0.00013421,2]
[395256746,1764573039345,-1000.0,0.00013421,2]
[395256747,1764573039354,-963.74871303,0.00013421,2]
[395256748,1764573039363,-500.0,0.00013421,2]
[395256749,1764573039372,-1000.0,0.00013421,2]
[395256750,1764573039386,-1000.0,0.00013421,2]
[395256751,1764573039396,-500.0,0.00013421,2]
[395256752,1764573039405,-1000.0,0.00013421,2]
[395256753,1764573039414,-1001.51277925,0.00013421,2]
[395256754,1764573039423,-186.65279503,0.00013421,2]
[395256755,1764573039433,-255.55740225,0.00013421,2]
[395256756,1764573039442,-500.0,0.00013421,2]
[395256757,1764573039451,-4394.0,0.00013421,2]
[395256758,1764573039460,-500.0,0.00013421,2]
[395256759,1764573039470,-500.0,0.00013421,2]
[395256760,1764573039481,-150.0,0.00013421,2]
[395256761,1764573039490,-500.0,0.00013421,2]
[395256762,1764573039500,-500.0,0.00013421,2]
[395256763,1764573039509,-417.0,0.00013421,2]
[395256764,1764573039522,-476.96146282,0.00013526,2]
[395256765,1764573039532,-500.0,0.00013558,2]
[395256766,1764573039541,-4394.0,0.00013558,2]
[395256767,1764573039553,-500.0,0.00013558,2]
[395256770,1764573039568,-335.76083111,0.00013558,2]
[395256771,1764573039579,-264.62206405,0.00013558,2]
[395256773,1764573039588,-500.0,0.00013558,2]
[395256774,1764573039600,-500.0,0.00013558,2]
[395256775,1764573039615,-417.0,0.00013558,2]
[395256776,1764573039624,-462.66126224,0.00013577,2]
[395256777,1764573039634,-161.86739996,0.00013577,2]
[395256778,1764573039644,-151.0,0.00013647,2]
[395256779,1764573039654,-38850.81143401,0.0001365,2]
[395256780,1764573039663,-1575.36,0.00013674,2]
[395256781,1764573039672,-12614.97504208,0.0001369,2]
[395256782,1764573039681,-500.0,0.00013695,2]
[395256783,1764573039691,-4394.0,0.00013695,2]
[395256784,1764573039700,-500.0,0.00013695,2]
[395256785,1764573039709,-500.0,0.00013695,2]
[395256786,1764573039718,-500.0,0.00013695,2]
[395256787,1764573039727,-417.0,0.00013695,2]
[395256788,1764573039736,-547.41803348,0.00013698,2]
[395256789,1764573039746,-500.0,0.00013698,2]
[395256790,1764573039755,-500.0,0.00013698,2]
[395256791,1764573039764,-500.0,0.00013698,2]
[395256792,1764573039773,-521.87,0.00013698,2]
[395256793,1764573039782,-500.0,0.00013698,2]
[395256794,1764573039790,-500.0,0.00013698,2]
[395256795,1764573039800,-500.0,0.00013698,2]
[395256796,1764573039809,-500.0,0.00013698,2]
[395256797,1764573039818,-500.0,0.00013698,2]
[395256798,1764573039827,-2162.66,0.00013698,2]
[395256799,1764573039836,-2162.66,0.00013698,2]
[395256800,1764573039845,-2162.66,0.00013698,2]
[395256801,1764573039854,-2162.66,0.00013698,2]
[395256802,1764573039863,-2162.66,0.00013698,2]
[395256803,1764573039872,-4512.22,0.00013698,2]
[395256804,1764573039881,-4512.22,0.00013698,2]
[395256805,1764573039890,-4512.22,0.00013698,2]
[395256806,1764573039899,-4512.22,0.00013698,2]
[395256807,1764573039908,-4512.22,0.00013698,2]
[395256808,1764573039917,-500.0,0.00013698,2]
[395256809,1764573039926,-500.0,0.00013698,2]
[395256810,1764573039935,-500.0,0.00013698,2]
[395256811,1764573039944,-500.0,0.00013698,2]
[395256812,1764573039954,-500.0,0.00013698,2]
[395256813,1764573039963,-500.0,0.00013698,2]
[395256814,1764573039971,-500.0,0.00013698,2]
[395256815,1764573039981,-500.0,0.00013698,2]
[395256816,1764573039990,-500.0,0.00013698,2]
[395256817,1764573039999,-500.0,0.00013698,2]
[395256819,1764573040008,-500.0,0.00013698,2]
[395256821,1764573040017,-500.0,0.00013698,2]
[395256823,1764573040026,-500.0,0.00013698,2]
[395256825,1764573040035,-500.0,0.00013698,2]
[395256826,1764573040044,-500.0,0.00013698,2]
[395256827,1764573040053,-413.92477484,0.00013698,2]
[395256828,1764573040062,-500.0,0.00013698,2]
[395256829,1764573040071,-500.0,0.00013698,2]
[395256830,1764573040081,-500.0,0.00013698,2]
[395256831,1764573040090,-500.0,0.00013698,2]
[395256832,1764573040099,-500.0,0.00013698,2]
[395256833,1764573040107,-500.0,0.00013698,2]
[395256834,1764573040116,-500.0,0.00013698,2]
[395256835,1764573040125,-500.0,0.00013698,2]
[395256836,1764573040135,-500.0,0.00013698,2]
[395256837,1764573040144,-500.0,0.00013698,2]
[395256838,1764573040153,-500.0,0.00013698,2]
[395256839,1764573040162,-1190.72,0.00013698,2]
[395256840,1764573040171,-604.47,0.00013698,2]
[395256841,1764573040180,-1190.72,0.00013698,2]
[395256842,1764573040189,-604.47,0.00013698,2]
[395256843,1764573040198,-1190.72,0.00013698,2]
[395256844,1764573040207,-604.47,0.00013698,2]
[395256845,1764573040215,-1190.72,0.00013698,2]
[395256846,1764573040225,-1190.72,0.00013698,2]
[395256847,1764573040234,-1190.72,0.00013698,2]
[395256848,1764573040243,-1190.72,0.00013698,2]
[395256849,1764573040253,-1190.72,0.00013698,2]
[395256850,1764573040263,-1190.72,0.00013698,2]
[395256851,1764573040272,-500.0,0.00013698,2]
[395256852,1764573040281,-1190.72,0.00013698,2]
[395256853,1764573040290,-500.0,0.00013698,2]
[395256854,1764573040300,-1190.72,0.00013698,2]
[395256855,1764573040309,-500.0,0.00013698,2]
[395256856,1764573040319,-1190.72,0.00013698,2]
[395256857,1764573040329,-1190.72,0.00013698,2]
[395256858,1764573040338,-1190.72,0.00013698,2]
[395256859,1764573040347,-1190.72,0.00013698,2]
[395256860,1764573040356,-1190.72,0.00013698,2]
[395256861,1764573040365,-1190.72,0.00013698,2]
[395256862,1764573040374,-1190.72,0.00013698,2]
[395256863,1764573040383,-1190.72,0.00013698,2]
[395256864,1764573040392,-1190.72,0.00013698,2]
[395256865,1764573040402,-1190.72,0.00013698,2]
[395256866,1764573040412,-500.0,0.00013698,2]
[395256867,1764573040421,-500.0,0.00013698,2]
[395256868,1764573040431,-500.0,0.00013698,2]
[395256869,1764573040441,-500.0,0.00013698,2]
[395256870,1764573040451,-500.0,0.00013698,2]
[395256871,1764573040460,-500.0,0.00013698,2]
[395256872,1764573040469,-1190.72,0.00013698,2]
[395256873,1764573040479,-1190.72,0.00013698,2]
[395256874,1764573040488,-1190.87522195,0.00013698,2]
[395256875,1764573040497,-500.0,0.00013698,2]
[395256876,1764573040506,-500.0,0.00013698,2]
[395256877,1764573040515,-541.73135515,0.00013698,2]
[395256878,1764573040527,-500.0,0.00013698,2]
[395256879,1764573040537,-500.0,0.00013698,2]
[395256880,1764573040546,-500.0,0.00013698,2]
[395256881,1764573040555,-500.0,0.00013698,2]
[395256882,1764573040565,-500.0,0.00013698,2]
[395256883,1764573040574,-500.0,0.00013698,2]
[395256884,1764573040585,-500.0,0.00013698,2]
[395256885,1764573040596,-500.0,0.00013698,2]
[395256886,1764573040605,-500.0,0.00013698,2]
[395256887,1764573040615,-500.0,0.00013698,2]
[395256888,1764573040624,-500.0,0.00013698,2]
[395256889,1764573040634,-500.0,0.00013698,2]
[395256890,1764573040643,-567.86060721,0.00013698,2]
[395256891,1764573040653,-500.0,0.00013698,2]
[395256892,1764573040662,-500.0,0.00013698,2]
[395256893,1764573040671,-500.0,0.00013698,2]
[395256894,1764573040680,-500.0,0.00013698,2]
[395256895,1764573040689,-500.0,0.00013698,2]
[395256896,1764573040700,-500.0,0.00013698,2]
[395256897,1764573040710,-484.18397562,0.00013698,2]
[395256898,1764573040720,-500.0,0.00013698,2]
[395256899,1764573040729,-500.0,0.00013698,2]
[395256900,1764573040739,-500.0,0.00013698,2]
[395256901,1764573040748,-500.0,0.00013698,2]
[395256902,1764573040758,-500.0,0.00013698,2]
[395256903,1764573040767,-500.0,0.00013698,2]
[395256904,1764573040777,-500.0,0.00013698,2]
[395256905,1764573040786,-500.0,0.00013698,2]
[395256906,1764573040796,-500.0,0.00013698,2]
[395256907,1764573040805,-500.0,0.00013698,2]
[395256908,1764573040814,-500.0,0.00013698,2]
[395256909,1764573040823,-500.0,0.00013698,2]
[395256910,1764573040832,-500.0,0.00013698,2]
[395256911,1764573040841,-500.0,0.00013698,2]
[395256912,1764573040851,-500.0,0.00013698,2]
[395256913,1764573040859,-500.0,0.00013698,2]
[395256914,1764573040868,-501.94091737,0.00013698,2]
[395256915,1764573040878,-500.0,0.00013698,2]
[395256916,1764573040887,-500.0,0.00013698,2]
[395256917,1764573040895,-500.0,0.00013698,2]
[395256918,1764573040904,-500.0,0.00013698,2]
[395256919,1764573040913,-500.0,0.00013698,2]
[395256920,1764573040923,-593.21617524,0.00013698,2]
[395256921,1764573040932,-500.0,0.00013698,2]
[395256922,1764573040941,-500.0,0.00013698,2]
[395256923,1764573040950,-500.0,0.00013698,2]
[395256924,1764573040959,-500.0,0.00013698,2]
[395256925,1764573040969,-500.0,0.00013698,2]
[395256926,1764573040979,-500.0,0.00013698,2]
[395256927,1764573040988,-500.0,0.00013698,2]
[395256928,1764573040998,-500.0,0.00013698,2]
[395256929,1764573041007,-500.0,0.00013698,2]
[395256930,1764573041017,-500.0,0.00013698,2]
[395256931,1764573041027,-500.0,0.00013698,2]
[395256932,1764573041037,-500.0,0.00013698,2]
[395256933,1764573041046,-500.0,0.00013698,2]
[395256934,1764573041310,-500.0,0.00013698,2]